bitfinex-derivatives/quotes_SOLF0:USTF0_20241016
["timestamp","ask_amount","ask_price","bid_price","bid_amount"]
[1729089643544,29.82,154.57,154.45,2.3785]
[1729089643745,29.82,154.57,154.53,3.2356]
[1729089643950,29.82,154.57,154.49,3.3114404]
[1729089644158,3.2356,154.54,154.45,2.3785]
[1729089644457,3.2356,154.54,154.46,2.37810231]
[1729089644651,3.2354,154.55,154.5,3.2362]
[1729089644856,2.8148,154.56,154.45,2.3785]
[1729089645051,2.8148,154.56,154.46,1.18907405]
[1729089645249,3.236,154.52,154.47,6.4690729]
[1729089645453,29.82,154.54,154.41,29.82]
[1729089645757,3.2356,154.54,154.49,3.2365]
[1729089646158,2.8148,154.56,154.41,29.82]
[1729089646455,1.3885,154.53,154.42,1.18914209]
[1729089646646,1.3885,154.53,154.41,29.82]
[1729089646960,1.3885,154.53,154.42,1.18913955]
[1729089647350,29.82,154.61,154.43,29.82]
[1729089647547,29.82,154.61,154.44,1.18913955]
[1729089647750,32.9792571,154.61,154.44,1.18913955]
[1729089648059,29.82,154.58,154.44,1.18913955]
[1729089648557,32.9792571,154.58,154.44,1.18913955]
[1729089648955,29.82,154.55,154.44,2.18913955]
[1729089649159,3.2358,154.53,154.48,3.2367]
[1729089649457,4.2246,154.54,154.47,3.2540607]
[1729089649753,4.2246,154.54,154.5,3.2362]
[1729089650856,4.2246,154.54,154.48,3.26927143]
[1729089651054,4.2246,154.54,154.43,29.82]
[1729089651362,4.2246,154.54,154.44,1.18903223]
[1729089653453,4.2246,154.54,154.5,3.2363]
[1729089653645,4.2246,154.54,154.49,3.16172663]
[1729089653850,2.8162,154.54,154.46,29.82]
[1729089654051,2.8162,154.54,154.52,3.2358]
[1729089654258,2.8162,154.54,154.46,33.11666062]
[1729089654452,2.8162,154.54,154.47,1.18899906]
[1729089654651,2.8162,154.54,154.5,3.2362]
[1729089654846,2.8162,154.54,154.46,33.11666062]
[1729089655048,1.3421,154.59,154.47,1.18896818]
[1729089655256,1.4221,154.58,154.51,3.236]
[1729089655457,1.4221,154.58,154.49,29.82]
[1729089655657,1.4221,154.58,154.5,1.18879568]
[1729089656055,1.4221,154.58,154.49,29.82]
[1729089656056,1.4221,154.58,154.51,1.1887023]
[1729089656363,1.4221,154.58,154.46,33.11666062]
[1729089656566,3.2351,154.56,154.51,3.2361]
[1729089656857,1.4221,154.58,154.46,33.11666062]
[1729089657049,3.2351,154.56,154.51,3.2361]
[1729089658954,3.2351,154.56,154.52,3.2359]
[1729089659156,3.235,154.57,154.52,3.2359]
[1729089659352,1.4221,154.58,154.47,6.474]
[1729089659551,1.4221,154.58,154.56,3.2351]
[1729089659751,1.4221,154.58,154.47,6.474]
[1729089659956,1.4221,154.58,154.49,29.82]
[1729089660165,1.4221,154.58,154.5,1.18884482]
[1729089660862,3.235,154.57,154.46,33.11666062]
[1729089661161,1.4221,154.58,154.47,1.1888394]
[1729089661360,4.6568,154.58,154.47,1.1888394]
[1729089661856,1.4221,154.58,154.53,3.2356]
[1729089662064,1.3718,154.59,154.52,29.82]
[1729089662262,1.3117,154.63,154.52,29.82]
[1729089662464,1.3117,154.63,154.59,3.2344]
[1729089662960,3.2342,154.61,154.56,3.2351]
[1729089663160,1.3117,154.63,154.55,3.19751283]
[1729089663460,3.234,154.62,154.52,29.82]
[1729089663653,1.3117,154.63,154.52,29.82]
[1729089663860,1.3117,154.63,154.49,29.82]
[1729089664066,3.2345,154.59,154.49,29.82]
[1729089664368,1.3117,154.63,154.48,1.0]
[1729089664659,4.6123,154.58,154.49,1.18885092]
[1729089664866,1.4288,154.57,154.49,1.18885092]
[1729089665166,1.4288,154.57,154.46,33.11666062]
[1729089665362,1.4288,154.57,154.47,1.18882474]
[1729089665766,1.4288,154.57,154.55,3.2353]
[1729089666065,1.3776,154.58,154.54,3.28977162]
[1729089666267,1.3776,154.58,154.49,29.82]
[1729089667066,3.2349,154.57,154.47,6.474]
[1729089667262,1.3776,154.58,154.48,1.18884459]
[1729089667464,1.4447,154.56,154.51,3.236]
[1729089667661,1.3362,154.55,154.51,3.236]
[1729089667860,1.3362,154.55,154.46,33.11666062]
[1729089668064,1.3362,154.55,154.51,3.236]
[1729089668265,1.3362,154.55,154.46,33.11666062]
[1729089668462,1.3362,154.55,154.47,1.18892389]
[1729089668670,1.3362,154.55,154.51,3.236]
[1729089669058,1.4447,154.56,154.46,33.11666062]
[1729089669364,1.4447,154.56,154.47,1.18892281]
[1729089669566,1.3776,154.58,154.48,29.82]
[1729089669874,1.3763,154.62,154.52,29.82]
[1729089670570,1.3763,154.62,154.52,3.17566531]
[1729089670762,4.5479,154.61,154.54,3.2354]
[1729089671066,1.3138,154.61,154.55,3.28923215]
[1729089671255,3.2345,154.59,154.54,3.2354]
[1729089671455,1.3138,154.61,154.49,3.28696729]
[1729089671656,1.4216,154.58,154.46,29.82]
[1729089671862,1.4216,154.58,154.47,1.18888992]
[1729089672066,1.4216,154.58,154.47,4.45773828]
[1729089672269,1.4216,154.58,154.48,31.00888992]
[1729089672569,1.4216,154.58,154.49,1.18888992]
[1729089673163,1.3138,154.61,154.49,1.18888992]
[1729089673562,1.3138,154.61,154.56,3.2349]
[1729089673867,1.3138,154.61,154.49,6.4732]
[1729089674171,1.3138,154.61,154.51,29.82]
[1729089674768,1.3138,154.61,154.58,3.2346]
[1729089675070,3.2327,154.68,154.58,3.26518729]
[1729089675373,4.1584,154.7,154.57,29.82]
[1729089675566,4.1584,154.7,154.58,1.1964]
[1729089675972,4.1584,154.7,154.57,3.18140648]
[1729089676174,3.2332,154.65,154.55,29.82]
[1729089676473,4.1584,154.7,154.6,3.2343]
[1729089676677,4.1584,154.7,154.59,3.27330919]
[1729089676861,4.1584,154.7,154.55,29.82]
[1729089677069,3.2325,154.69,154.58,29.82]
[1729089677280,4.1584,154.7,154.58,3.23710073]
[1729089677469,4.1584,154.7,154.55,29.82]
[1729089677776,3.2329,154.67,154.61,3.234]
[1729089678076,4.1584,154.7,154.6,3.2342]
[1729089678276,4.1584,154.7,154.55,29.82]
[1729089678472,4.1584,154.7,154.56,1.18836087]
[1729089678773,4.1584,154.7,154.56,4.42513831]
[1729089678774,3.2326,154.68,154.56,4.42513831]
[1729089678976,3.2326,154.68,154.57,1.18829351]
[1729089679178,3.2326,154.68,154.62,3.2338]
[1729089679567,3.2326,154.68,154.56,3.18655027]
[1729089679768,3.2328,154.67,154.59,3.2344]
[1729089679977,4.1584,154.7,154.59,3.30132557]
[1729089680179,4.1584,154.7,154.57,29.82]
[1729089680373,4.1584,154.7,154.65,3.2331]
[1729089680882,4.1584,154.7,154.58,4.43501917]
[1729089681079,7.3907,154.7,154.64,3.2333]
[1729089681466,4.1584,154.7,154.66,3.2328]
[1729089681776,1.4387,154.7,154.66,3.21855803]
[1729089682082,1.4387,154.7,154.61,1.1947]
[1729089682775,1.4387,154.7,154.66,3.233]
[1729089682978,1.4387,154.7,154.61,1.1947]
[1729089683182,1.4387,154.7,154.63,3.2335]
[1729089683373,1.4387,154.7,154.61,1.1947]
[1729089683974,3.2325,154.69,154.58,4.43501917]
[1729089684181,1.321,154.69,154.58,3.24991917]
[1729089684376,1.321,154.69,154.54,1.1962]
[1729089684377,1.321,154.69,154.54,32.2007]
[1729089684577,3.233,154.67,154.61,3.2339]
[1729089684874,1.321,154.69,154.62,3.27602246]
[1729089685071,1.321,154.69,154.54,32.2007]
[1729089685276,1.321,154.69,154.57,29.82]
[1729089685481,1.321,154.69,154.58,1.18821965]
[1729089685883,1.4387,154.7,154.66,3.2328]
[1729089686068,1.4387,154.7,154.65,3.2032685]
[1729089686268,1.4456,154.74,154.61,2.3817]
[1729089686479,1.3094,154.73,154.61,2.3817]
[1729089686675,3.2321,154.71,154.65,3.2331]
[1729089686879,1.3094,154.73,154.61,2.3817]
[1729089687184,3.2325,154.69,154.64,3.2333]
[1729089687582,29.82,154.72,154.57,3.27956759]
[1729089687885,1.3094,154.73,154.49,8.95197418]
[1729089687886,29.82,154.69,154.58,1.1881578]
[1729089688082,29.82,154.66,154.51,29.82]
[1729089688290,3.2338,154.63,154.58,3.2346]
[1729089688478,3.2338,154.63,154.58,6.48862679]
[1729089688679,2.6303,154.65,154.51,29.82]
[1729089688880,29.82,154.63,154.52,1.18845339]
[1729089689079,29.82,154.63,154.5,2.3817]
[1729089689277,29.82,154.63,154.51,1.18863246]
[1729089689680,2.6303,154.65,154.51,1.18863246]
[1729089689879,2.6303,154.65,154.51,31.00863246]
[1729089690083,2.6303,154.65,154.52,1.18850178]
[1729089690483,3.2336,154.64,154.58,3.2345]
[1729089690674,2.6303,154.65,154.58,3.27200413]
[1729089690981,2.6303,154.65,154.54,29.82]
[1729089691175,2.6303,154.65,154.55,1.18834463]
[1729089691378,2.6303,154.65,154.56,3.29463881]
[1729089691581,2.6303,154.65,154.54,3.2355]
[1729089691781,2.6303,154.65,154.5,2.3817]
[1729089691989,3.2342,154.61,154.55,3.2353]
[1729089692179,3.2342,154.61,154.56,3.29366106]
[1729089692384,2.6303,154.65,154.51,29.82]
[1729089692685,3.2337,154.63,154.57,3.2347]
[1729089692884,2.6303,154.65,154.56,3.17076326]
[1729089693179,2.6303,154.65,154.51,29.82]
[1729089693387,2.6303,154.65,154.52,1.18861009]
[1729089693588,3.2341,154.61,154.55,3.2351]
[1729089693886,2.6303,154.65,154.51,29.82]
[1729089694087,2.6303,154.65,154.52,1.1886222]
[1729089694789,3.2337,154.63,154.57,3.2347]
[1729089694989,3.2337,154.63,154.57,6.49601953]
[1729089695288,2.6303,154.65,154.51,29.82]
[1729089695483,2.6303,154.65,154.52,1.1886047]
[1729089696089,3.2335,154.64,154.52,1.1886047]
[1729089696291,2.6303,154.65,154.52,1.1886047]
[1729089696487,3.234,154.62,154.57,3.2349]
[1729089696701,2.6303,154.65,154.57,3.22121604]
[1729089696883,2.6303,154.65,154.51,29.82]
[1729089697592,3.2335,154.64,154.52,1.18858648]
[1729089697988,3.2335,154.64,154.58,3.2345]
[1729089698394,3.2335,154.64,154.57,3.16849935]
[1729089698685,3.2335,154.64,154.51,29.82]
[1729089698897,3.2342,154.61,154.52,1.18856354]
[1729089699088,2.6303,154.65,154.54,3.2354]
[1729089699486,3.2344,154.6,154.54,3.2354]
[1729089700192,3.2345,154.59,154.5,2.3817]
[1729089700689,3.2345,154.59,154.54,3.2354]
[1729089702387,29.82,154.63,154.51,3.236]
[1729089702388,3.235,154.57,154.51,3.236]
[1729089702887,3.235,154.57,154.48,3.1669294]
[1729089703094,3.235,154.57,154.45,2.3856]
[1729089703095,4.6581,154.57,154.45,2.3856]
[1729089703286,1.4231,154.57,154.46,1.18890896]
[1729089703482,1.4231,154.57,154.46,4.48515014]
[1729089703692,2.8384,154.58,154.48,29.82]
[1729089703987,2.8384,154.58,154.54,3.2354]
[1729089704190,2.8384,154.58,154.48,29.82]
[1729089704393,2.8384,154.58,154.54,3.2354]
[1729089704790,1.3839,154.58,154.54,3.28071423]
[1729089705092,1.3839,154.58,154.48,29.82]
[1729089705293,1.3839,154.58,154.49,1.18883955]
[1729089705494,1.3839,154.58,154.54,3.2353]
[1729089705697,1.3839,154.58,154.54,6.50458053]
[1729089705881,1.3839,154.58,154.54,3.2353]
[1729089706088,1.3345,154.63,154.54,3.22916666]
[1729089706285,2.6935,154.63,154.51,29.82]
[1729089706491,2.6935,154.63,154.52,3.57420325]
[1729089706691,2.6935,154.63,154.52,2.3856]
[1729089707092,5.9273,154.63,154.52,2.3856]
[1729089707299,2.6935,154.63,154.58,3.2347]
[1729089707501,2.6935,154.63,154.58,6.45545569]
[1729089708404,2.6935,154.63,154.52,2.3856]
[1729089708795,2.6935,154.63,154.53,1.18857441]
[1729089708993,2.6935,154.63,154.59,3.2344]
[1729089709494,2.6935,154.63,154.58,3.2346]
[1729089709894,5.9272,154.63,154.58,3.2346]
[1729089710091,2.6935,154.63,154.57,3.28040562]
[1729089710394,5.9272,154.63,154.52,2.3856]
[1729089710599,1.359,154.63,154.54,29.82]
[1729089710791,1.4231,154.67,154.54,33.12951591]
[1729089710998,3.2333,154.65,154.54,33.12951591]
[1729089711300,1.4231,154.67,154.54,33.12951591]
[1729089711501,3.233,154.66,154.55,1.18838779]
[1729089711700,1.4231,154.67,154.54,33.12951591]
[1729089711896,1.4231,154.67,154.6,3.2342]
[1729089712298,1.4231,154.67,154.54,33.12951591]
[1729089712499,1.4231,154.67,154.62,3.2338]
[1729089712897,3.2333,154.65,154.6,3.2341]
[1729089713208,31.2431,154.67,154.54,3.30951591]
[1729089713397,31.2431,154.67,154.52,2.3856]
[1729089713594,29.82,154.64,154.52,2.3856]
[1729089713906,31.2431,154.67,154.52,2.3856]
[1729089714105,3.2335,154.64,154.59,3.2343]
[1729089714304,3.2335,154.64,154.58,3.16452544]
[1729089714598,3.2335,154.64,154.52,2.3856]
[1729089714804,3.2335,154.64,154.59,3.2343]
[1729089715300,3.2335,154.64,154.58,3.23512296]
[1729089715496,3.2335,154.64,154.6,3.2342]
[1729089716205,31.2431,154.67,154.61,3.234]
[1729089716408,31.2431,154.67,154.52,2.3856]
[1729089716707,3.2335,154.64,154.6,3.2341]
[1729089717802,3.2336,154.63,154.6,3.2341]
[1729089718401,3.2335,154.64,154.52,2.3856]
[1729089718604,3.2335,154.64,154.61,3.234]
[1729089719702,29.82,154.64,154.52,2.3856]
[1729089719908,29.82,154.64,154.5,6.4724]
[1729089720296,3.2343,154.6,154.57,3.2348]
[1729089720504,29.82,154.64,154.54,3.16300129]
[1729089720699,29.82,154.64,154.48,1.1976]
[1729089720906,29.82,154.64,154.54,3.2354]
[1729089721505,3.2348,154.58,154.55,3.2352]
[1729089721703,29.82,154.64,154.55,3.2352]
[1729089721898,29.82,154.64,154.48,1.1976]
[1729089721899,3.2355,154.55,154.51,3.236]
[1729089722100,3.17773033,154.6,154.46,3.29624118]
[1729089722308,4.0194,154.6,154.48,29.82]
[1729089722499,7.2537,154.6,154.56,3.235]
[1729089723499,4.0194,154.6,154.45,29.82]
[1729089723801,4.0194,154.6,154.46,1.18891231]
[1729089724403,4.0194,154.6,154.48,29.82]
[1729089724604,4.0194,154.6,154.49,1.18887103]
[1729089724909,4.0194,154.6,154.48,29.82]
[1729089725208,3.2353,154.55,154.5,3.2362]
[1729089725713,3.2353,154.55,154.45,29.82]
[1729089725714,3.2356,154.54,154.49,3.2365]
[1729089726412,29.82,154.55,154.44,3.15929089]
[1729089726610,29.82,154.52,154.45,1.18907888]
[1729089726914,29.82,154.52,154.42,3.238]
[1729089726915,3.237,154.47,154.42,3.238]
[1729089727109,2.8057,154.51,154.38,3.30669686]
[1729089727409,3.2376,154.45,154.39,4.42807975]
[1729089727706,3.2376,154.45,154.39,6.44654195]
[1729089728010,29.82,154.46,154.36,3.2392]
[1729089728308,2.734,154.44,154.29,29.82]
[1729089728512,3.2383,154.41,154.35,3.2395]
[1729089728808,29.82,154.4,154.29,3.3080808]
[1729089729000,29.82,154.4,154.24,1.1995]
[1729089729204,3.29318829,154.39,154.25,1.19047869]
[1729089729407,29.82,154.37,154.25,1.19047869]
[1729089729610,1.349,154.36,154.25,1.19047869]
[1729089730316,1.349,154.36,154.24,4.41919696]
[1729089730610,3.2399,154.34,154.26,3.2412]
[1729089730812,1.349,154.36,154.24,4.41919696]
[1729089731007,1.349,154.36,154.25,1.19071786]
[1729089731516,1.349,154.36,154.26,31.01067393]
[1729089731816,29.82,154.46,154.29,29.82]
[1729089732004,29.82,154.46,154.31,29.82]
[1729089732204,29.82,154.48,154.37,3.2389]
[1729089732405,29.82,154.48,154.37,3.21798859]
[1729089732609,29.82,154.48,154.32,2.8361]
[1729089732914,3.2374,154.46,154.37,3.2389]
[1729089733213,29.82,154.48,154.32,6.13022908]
[1729089733214,29.82,154.48,154.32,2.8361]
[1729089733402,29.82,154.48,154.33,1.19015605]
[1729089733601,29.82,154.48,154.36,3.2391]
[1729089733807,29.82,154.48,154.32,2.8361]
[1729089733808,29.82,154.48,154.37,3.23969673]
[1729089734120,29.82,154.48,154.34,29.82]
[1729089734310,2.8456,154.5,154.37,29.82]
[1729089734508,2.8456,154.5,154.42,3.2379]
[1729089734907,2.8456,154.5,154.37,29.82]
[1729089735115,1.4502,154.5,154.44,3.2374]
[1729089735315,1.3452,154.51,154.44,3.25131127]
[1729089735617,1.3452,154.51,154.34,29.82]
[1729089735618,1.3452,154.51,154.4,29.82]
[1729089735913,1.3452,154.51,154.41,1.3604]
[1729089736123,29.82,154.57,154.43,29.82]
[1729089736424,29.82,154.57,154.44,1.4049]
[1729089736623,1.4364,154.58,154.46,29.82]
[1729089737116,1.4364,154.58,154.52,3.2358]
[1729089737414,1.4364,154.58,154.45,1.0]
[1729089737614,1.4364,154.58,154.48,3.2366]
[1729089737615,3.2353,154.56,154.48,3.2366]
[1729089737823,29.82,154.55,154.44,1.4049]
[1729089738523,29.82,154.52,154.4,3.26652852]
[1729089738916,29.82,154.52,154.42,3.2379]
[1729089739121,29.82,154.52,154.4,3.26652852]
[1729089739323,29.82,154.49,154.35,1.3835]
[1729089739526,1.3508,154.48,154.36,1.18987048]
[1729089740711,1.3508,154.48,154.38,3.2387]
[1729089740921,2.8035,154.48,154.38,3.2387]
[1729089741427,2.8035,154.48,154.35,2.6948]
[1729089741725,2.8035,154.48,154.36,1.18995456]
[1729089742122,1.4291,154.54,154.36,1.18995456]
[1729089742123,29.82,154.52,154.36,1.18995456]
[1729089742318,29.82,154.52,154.45,3.2374]
[1729089742517,1.3255,154.53,154.45,3.16595441]
[1729089742711,1.3255,154.53,154.49,3.2366]
[1729089743025,29.82,154.61,154.46,29.82]
[1729089743317,3.2348,154.58,154.51,3.236]
[1729089743522,29.82,154.61,154.51,3.19897694]
[1729089743724,29.82,154.61,154.45,1.3388]
[1729089744119,29.82,154.61,154.46,1.18929204]
[1729089744614,3.2348,154.58,154.49,3.2364]
[1729089744813,29.82,154.61,154.45,1.3388]
[1729089745009,29.82,154.61,154.46,1.18926545]
[1729089745413,33.9997,154.64,154.47,29.82]
[1729089745717,33.9997,154.64,154.48,1.18897312]
[1729089745914,3.2341,154.61,154.53,3.2355]
[1729089746121,29.82,154.61,154.51,3.30853581]
[1729089746319,3.2347,154.59,154.51,3.2361]
[1729089746516,29.82,154.58,154.45,1.3388]
[1729089746720,29.82,154.58,154.46,1.18893332]
[1729089746926,29.82,154.58,154.47,3.2368]
[1729089746927,3.2356,154.54,154.47,3.2368]
[1729089747123,29.82,154.58,154.45,1.3388]
[1729089747421,3.2351,154.57,154.46,1.18918019]
[1729089747625,29.82,154.58,154.46,1.18918019]
[1729089747928,29.82,154.58,154.45,1.3388]
[1729089748126,3.2351,154.57,154.45,1.3388]
[1729089748431,29.82,154.58,154.46,1.18910084]
[1729089748620,3.2349,154.57,154.5,3.2363]
[1729089748927,29.82,154.58,154.45,1.3388]
[1729089749123,29.82,154.58,154.49,3.2364]
[1729089749124,3.2353,154.55,154.49,3.2364]
[1729089749828,3.2353,154.55,154.48,3.2367]
[1729089750130,29.82,154.58,154.45,1.3388]
[1729089750315,3.2351,154.56,154.46,1.18918882]
[1729089750721,3.2351,154.56,154.49,3.2364]
[1729089750923,1.4257,154.55,154.45,1.3388]
[1729089751123,1.4257,154.55,154.46,1.1891815]
[1729089751325,1.4257,154.55,154.5,3.2362]
[1729089751524,1.4257,154.55,154.45,1.3388]
[1729089751731,1.4257,154.55,154.46,1.1891814]
[1729089752232,1.4257,154.55,154.48,3.2366]
[1729089752431,1.4257,154.55,154.45,1.3388]
[1729089753025,1.4257,154.55,154.49,3.2364]
[1729089753732,1.4257,154.55,154.43,3.252072]
[1729089753931,1.4257,154.55,154.44,1.18923779]
[1729089753932,1.3969,154.54,154.44,1.18923779]
[1729089754135,1.4257,154.55,154.45,29.82]
[1729089754436,1.4257,154.55,154.51,3.236]
[1729089754637,1.4257,154.55,154.52,3.24414391]
[1729089754829,1.4257,154.55,154.51,3.236]
[1729089755227,1.4257,154.55,154.45,31.1537]
[1729089755434,1.4257,154.55,154.46,1.18913783]
[1729089755929,4.6611,154.55,154.49,3.2364]
[1729089756128,1.4257,154.55,154.45,1.3337]
[1729089756624,3.2356,154.54,154.48,3.2366]
[1729089756931,1.4257,154.55,154.45,1.3337]
[1729089757739,4.6611,154.55,154.49,3.2364]
[1729089759136,3.2357,154.54,154.45,1.3337]
[1729089759534,1.4257,154.55,154.45,1.3337]
[1729089759535,3.2357,154.53,154.47,3.2369]
[1729089759839,1.4257,154.55,154.47,3.2369]
[1729089760235,1.4257,154.55,154.48,3.2366]
[1729089760534,31.2457,154.55,154.44,3.29105733]
[1729089760736,31.2457,154.55,154.39,29.82]
[1729089760737,29.82,154.49,154.4,3.2383]
[1729089760946,2.8345,154.48,154.41,3.19117266]
[1729089761127,2.8345,154.48,154.35,1.429]
[1729089761330,29.82,154.46,154.36,1.18976844]
[1729089761528,29.82,154.43,154.33,1.4245]
[1729089761736,29.82,154.43,154.32,3.26005309]
[1729089761939,3.2386,154.4,154.33,3.2399]
[1729089762144,29.82,154.43,154.32,3.16431529]
[1729089762342,29.82,154.43,154.29,2.8568]
[1729089762644,29.82,154.43,154.34,3.2396]
[1729089763341,3.2385,154.4,154.34,3.2396]
[1729089763937,29.82,154.46,154.32,3.26883251]
[1729089764132,1.4483,154.47,154.33,29.82]
[1729089764435,31.2683,154.47,154.3,29.82]
[1729089764641,31.2683,154.47,154.31,1.1901834]
[1729089765035,3.2381,154.42,154.35,3.2394]
[1729089765838,31.2683,154.47,154.3,29.82]
[1729089766041,31.2683,154.47,154.31,1.19026027]
[1729089766042,3.2379,154.43,154.31,1.19026027]
[1729089766449,3.2377,154.44,154.37,3.2389]
[1729089766642,31.2683,154.47,154.37,3.16935835]
[1729089766846,31.2683,154.47,154.3,29.82]
[1729089767041,31.2683,154.47,154.38,3.2387]
[1729089767042,3.2376,154.45,154.38,3.2387]
[1729089767247,3.2376,154.45,154.37,3.31088805]
[1729089767449,3.2376,154.45,154.3,29.82]
[1729089767743,3.2376,154.45,154.39,3.2385]
[1729089767946,31.2683,154.47,154.3,29.82]
[1729089767947,3.2382,154.42,154.3,29.82]
[1729089768144,29.82,154.43,154.31,1.19022488]
[1729089768551,3.2383,154.41,154.34,3.2397]
[1729089768844,29.82,154.38,154.29,3.23422723]
[1729089769048,2.7249,154.37,154.24,2.7602]
[1729089769239,2.7249,154.37,154.25,1.19052712]
[1729089769848,5.964,154.37,154.31,3.2403]
[1729089770146,5.964,154.37,154.26,29.82]
[1729089770147,1.3298,154.37,154.26,29.82]
[1729089770453,1.3298,154.37,154.27,1.19047225]
[1729089770954,4.5691,154.37,154.27,1.19047225]
[1729089771254,1.3298,154.37,154.27,1.19047225]
[1729089771850,1.3298,154.37,154.25,3.15893481]
[1729089772052,1.3298,154.37,154.26,1.19060671]
[1729089772250,3.2396,154.35,154.29,3.2406]
[1729089772843,1.3298,154.37,154.24,2.7602]
[1729089773041,3.2394,154.36,154.25,1.19059913]
[1729089773252,3.2394,154.36,154.25,4.49358623]
[1729089773546,1.3298,154.37,154.29,3.2408]
[1729089773746,3.2395,154.35,154.24,6.02592928]
[1729089773962,1.3298,154.37,154.25,1.19061772]
[1729089774149,1.3298,154.37,154.29,3.2406]
[1729089774348,1.3298,154.37,154.25,3.31108663]
[1729089774553,1.3298,154.37,154.28,3.2409]
[1729089774754,29.82,154.35,154.24,4.71031155]
[1729089774955,3.2401,154.33,154.25,1.19073788]
[1729089775154,29.82,154.35,154.25,1.19073788]
[1729089775453,3.2403,154.32,154.25,1.19073788]
[1729089775657,29.82,154.35,154.25,4.43223788]
[1729089775952,3.2403,154.32,154.25,3.2415]
[1729089776157,2.7538,154.31,154.24,3.29521155]
[1729089776354,2.7538,154.31,154.18,1.3995]
[1729089776554,2.7538,154.31,154.19,1.19098594]
[1729089777155,3.241,154.28,154.19,1.19098594]
[1729089777657,1.3276,154.27,154.19,1.19098594]
[1729089777850,1.3276,154.27,154.2,1.19108965]
[1729089778050,1.3276,154.27,154.19,1.19108965]
[1729089778254,1.3276,154.27,154.2,1.19108965]
[1729089778452,1.3276,154.27,154.21,4.43338965]
[1729089778651,1.3276,154.27,154.18,1.3995]
[1729089778855,1.3276,154.27,154.19,1.19109063]
[1729089779645,1.3658,154.31,154.2,29.82]
[1729089779952,1.3658,154.31,154.24,3.2418]
[1729089780156,1.3658,154.31,154.25,1.19109063]
[1729089780545,3.2393,154.36,154.3,3.2405]
[1729089780745,1.4439,154.37,154.25,3.16458157]
[1729089780961,29.82,154.33,154.18,1.3995]
[1729089781156,29.82,154.33,154.22,3.2421]
[1729089781157,3.2408,154.29,154.22,3.2421]
[1729089781353,1.372,154.28,154.18,1.3995]
[1729089781656,1.4439,154.27,154.19,1.19105642]
[1729089781855,3.2416,154.25,154.19,3.2428]
[1729089782046,1.4439,154.27,154.19,3.2428]
[1729089782255,1.4439,154.27,154.11,29.82]
[1729089782455,3.2414,154.26,154.19,3.2427]
[1729089782663,31.2639,154.27,154.11,33.0900162]
[1729089782859,31.2639,154.27,154.12,1.19131983]
[1729089783050,31.2639,154.27,154.18,3.243]
[1729089783252,29.82,154.24,154.11,3.2700162]
[1729089783455,1.3486,154.23,154.12,1.19137527]
[1729089783658,1.3486,154.23,154.11,3.16499189]
[1729089783853,1.3486,154.23,154.12,1.19137527]
[1729089784160,1.3486,154.23,154.13,1.19137527]
[1729089784453,1.4439,154.27,154.14,29.82]
[1729089784658,1.4439,154.27,154.22,3.2421]
[1729089784846,1.4439,154.27,154.14,33.09228525]
[1729089785049,1.4439,154.27,154.15,1.19119828]
[1729089785360,1.4439,154.27,154.23,3.242]
[1729089785854,1.4439,154.27,154.22,3.2422]
[1729089786455,1.4439,154.27,154.21,3.2424]
[1729089786761,1.4439,154.27,154.14,3.27228525]
[1729089786964,4.6851,154.27,154.21,3.2424]
[1729089787262,1.4487,154.26,154.1,29.82]